[Event "Czech Youth U12 Boys 2024"]
[Site "Kouty nad Desnou"]
[Date "2024.03.11"]
[Round "3.2"]
[White "Hladky, Mikulas"]
[Black "Policar, Martin"]
[Result "0-1"]
[ECO "B51"]
[WhiteElo "1798"]
[BlackElo "1758"]
[Annotator "NA RC"]
[PlyCount "152"]
[EventDate "2024.03.10"]
[EventType "swiss"]
[EventCountry "CZE"]
[SourceTitle "playchess.com"]
[Source "ChessBase"]
[SourceQuality "1"]
[TimeControl "40/5400+30:1800+30"]

1. e4 {[%emt 0:00:07]} c5 {[%emt 0:00:09]} 2. Nf3 {[%emt 0:00:14]} d6 {[%emt 0:00:09]} 3. Bb5+ {[%emt 0:00:12]} Nd7 {[%emt 0:00:12]} 4. c4 {[%emt 0:01:06]} Ngf6 {[%emt 0:00:13]} 5. Nc3 {[%emt 0:00:11]} g6 {[%emt 0:00:18]} 6. d4 {[%emt 0:00:42]} cxd4 {[%emt 0:00:17]} 7. Nxd4 {[%emt 0:00:30]} Bg7 {[%emt 0:00:12]} 8. f3 {[%emt 0:00:41]} O-O {[%emt 0:00:16]} 9. Bxd7 {[%emt 0:00:29]} Bxd7 {[%emt 0:00:29]} 10. Be3 {[%emt 0:00:28]} a6 {[%emt 0:01:20]} 11. a4 {[%emt 0:00:18]} Rb8 {[%emt 0:01:09]} 12. O-O {[%emt 0:03:30]} Qa5 {[%emt 0:03:59]} 13. Rc1 {[%emt 0:01:38]} Qb4 {[%emt 0:07:11]} 14. b3 {[%emt 0:02:22]} Bc6 {[%emt 0:06:55]} 15. Re1 {[%emt 0:08:35]} Nd7 {[%emt 0:04:34]} 16. Nd5 {[%emt 0:03:52]} Bxd5 {[%emt 0:01:06]} 17. exd5 {[%emt 0:02:04]} Rfe8 {[%emt 0:03:01]} 18. Rb1 {[%emt 0:12:19]} Qc3 {[%emt 0:07:19]} 19. Rc1 {[%emt 0:01:41]} Qb4 {[%emt 0:01:29]} 20. Rb1 {[%emt 0:01:13]} Nc5 {[%emt 0:03:05]} 21. Nc2 {[%emt 0:02:06]} Qc3 {[%emt 0:02:32]} 22. Bd4 {[%emt 0:02:21]} Bxd4+ {[%emt 0:00:44]} 23. Nxd4 {[%emt 0:00:12]} Nd3 {[%emt 0:02:25]} 24. Re3 {[%emt 0:00:26]} Qxd4 {[%emt 0:00:45]} 25. Qxd3 {[%emt 0:00:05]} Qxd3 {[%emt 0:02:43]} 26. Rxd3 {[%emt 0:00:06]} b5 {[%emt 0:02:04]} 27. axb5 {[%emt 0:01:11]} axb5 {[%emt 0:00:10]} 28. c5 {[%emt 0:01:09]} dxc5 {[%emt 0:00:21]} 29. Rc1 {[%emt 0:02:30]} Rbc8 {[%emt 0:01:39]} 30. Rdc3 {[%emt 0:00:18]} c4 {[%emt 0:00:12]} 31. bxc4 {[%emt 0:00:06]} Rxc4 {[%emt 0:00:32]} 32. Rxc4 {[%emt 0:00:04]} bxc4 {[%emt 0:00:02]} 33. Rxc4 {[%emt 0:00:07]} Rd8 {[%emt 0:00:10]} 34. Rd4 {[%emt 0:01:56]} Kg7 {[%emt 0:00:52]} 35. Kf2 {[%emt 0:00:35]} Kf6 {[%emt 0:00:18]} 36. Ke3 {[%emt 0:00:57]} Ke5 {[%emt 0:06:21]} 37. Re4+ {[%emt 0:01:00]} Kd6 {[%emt 0:00:13]} 38. Rd4 {[%emt 0:00:25]} Kc5 {[%emt 0:02:26]} 39. Re4 {[%emt 0:03:06]} Rd7 {[%emt 0:00:50]} 40. g3 {[%emt 0:03:42]} Kxd5 {[%emt 0:00:58]} 41. Rd4+ {[%emt 0:30:26]} Ke6 {[%emt 0:31:03]} 42. Re4+ {[%emt 0:00:18]} Kf6 {[%emt 0:00:25]} 43. Rf4+ {[%emt 0:00:45]} Kg7 {[%emt 0:00:06]} 44. h4 {[%emt 0:00:52]} f5 {[%emt 0:01:06]} 45. Rc4 {[%emt 0:02:39]} Kf6 {[%emt 0:01:14]} 46. f4 {[%emt 0:01:35]} Rd6 {[%emt 0:00:15]} 47. Rb4 {[%emt 0:01:10]} Ra6 {[%emt 0:00:24]} 48. Rb3 {[%emt 0:00:30]} h6 {[%emt 0:00:23]} 49. Kf3 {[%emt 0:01:10]} g5 {[%emt 0:00:25]} 50. hxg5+ {[%emt 0:01:54]} hxg5 {[%emt 0:00:14]} 51. fxg5+ {[%emt 0:00:29]} Kxg5 {[%emt 0:00:05]} 52. Rb7 {[%emt 0:01:41]} Ra3+ {[%emt 0:00:19]} 53. Kf2 {[%emt 0:00:41]} Ra2+ {[%emt 0:01:21]} 54. Ke3 {[%emt 0:01:22]} Ra1 {[%emt 0:00:41]} 55. Kf3 {[%emt 0:00:58]} e5 {[%emt 0:01:03]} 56. Rg7+ {[%emt 0:00:25]} Kf6 {[%emt 0:00:11]} 57. Rg8 {[%emt 0:00:43]} e4+ {[%emt 0:00:14]} 58. Ke3 {[%emt 0:01:57]} Ra3+ {[%emt 0:00:31]} 59. Ke2 {[%emt 0:00:52]} Rf3 {[%emt 0:01:00]} 60. g4 {[%emt 0:00:12]} f4 {[%emt 0:05:03]} 61. g5+ {[%emt 0:01:25]} Kf7 {[%emt 0:00:56]} 62. Rb8 {[%emt 0:02:06]} Rg3 {[%emt 0:01:04]} 63. Rb4 {[%emt 0:00:39]} f3+ {[%emt 0:00:19]} 64. Kf2 {[%emt 0:01:40]} Rg4 {[%emt 0:00:12]} 65. Rb5 {[%emt 0:01:18]} Kg6 {[%emt 0:00:12]} 66. Re5 {[%emt 0:01:27]} Rf4 {[%emt 0:00:16]} 67. Re8 {[%emt 0:02:29]} Kxg5 {[%emt 0:00:18]} 68. Rg8+ {[%emt 0:00:23]} Kf5 {[%emt 0:00:54]} 69. Rf8+ {[%emt 0:00:15]} Ke5 {[%emt 0:00:04]} 70. Re8+ {[%emt 0:00:14]} Kd6 {[%emt 0:00:06]} 71. Rd8+ {[%emt 0:01:19]} Ke7 {[%emt 0:00:09]} 72. Rd1 {[%emt 0:01:01]} Ke6 {[%emt 0:00:57]} 73. Rd8 {[%emt 0:00:44]} e3+ {[%emt 0:00:32]} 74. Kf1 {[%emt 0:01:19]} Ke7 {[%emt 0:00:40]} 75. Rd5 {[%emt 0:01:53]} e2+ {[%emt 0:00:29]} 76. Kf2 {[%emt 0:00:12]} Re4 {[%emt 0:00:08]} 0-1

[Event "Czech Youth U12 Boys 2024"]
[Site "Kouty nad Desnou"]
[Date "2024.03.11"]
[Round "3.3"]
[White "Sochor, Vaclav"]
[Black "Honcharov, Makar"]
[Result "0-1"]
[ECO "B23"]
[WhiteElo "1826"]
[BlackElo "1872"]
[Annotator "NA RC"]
[PlyCount "68"]
[EventDate "2024.03.10"]
[EventType "swiss"]
[EventCountry "CZE"]
[SourceTitle "playchess.com"]
[Source "ChessBase"]
[SourceQuality "1"]
[TimeControl "40/5400+30:1800+30"]

1. e4 {[%emt 0:00:04]} c5 {[%emt 0:00:02]} 2. Nc3 {[%emt 0:00:49]} g6 {[%emt 0:00:32]} 3. h4 {[%emt 0:00:54]} h5 {[%emt 0:00:56]} 4. d4 {[%emt 0:01:31]} cxd4 {[%emt 0:00:08]} 5. Qxd4 {[%emt 0:00:13]} Nf6 {[%emt 0:00:06]} 6. Bg5 {[%emt 0:02:08] B23: Closed Sicilian: Lines without g3.} Nc6 {[%emt 0:00:28]} 7. Qd2 {[%emt 0:01:00]} Bg7 {[%emt 0:00:23]} 8. O-O-O {[%emt 0:04:36]} d6 {[%emt 0:01:39]} 9. Kb1 {[%emt 0:01:27]} Be6 {[%emt 0:01:46]} 10. f3 {[%emt 0:03:23]} a6 {[%emt 0:02:18]} 11. Nh3 {[%emt 0:03:17]} Rc8 {[%emt 0:04:10]} 12. Nf4 {[%emt 0:03:23]} Ne5 {[%emt 0:00:34]} 13. Ncd5 {[%emt 0:06:55]} Bxd5 {[%emt 0:02:32]} 14. Nxd5 {[%emt 0:00:16]} Nxd5 {[%emt 0:00:05]} 15. Qxd5 {[%emt 0:00:48]} Qc7 {[%emt 0:00:12]} 16. Qb3 {[%emt 0:04:44]} b5 {[%emt 0:02:27]} 17. Be2 {[%emt 0:07:29]} O-O {[%emt 0:07:17]} (17... Nd7 $142 18. Bc1 Nc5) 18. g4 {[%emt 0:09:27]} hxg4 $1 {[%emt 0:02:14]} 19. f4 {[%emt 0:02:50] [#]} Nc4 $1 20. c3 {[%emt 0:05:00]} a5 {[%emt 0:02:01]} 21. f5 {[%emt 0:01:31]} a4 {[%emt 0:00:32]} 22. Qb4 {[%emt 0:03:27] [#]} (22. Qxb5 $2 {too greedy.} Na3+ 23. bxa3 Rb8 $19 (23... Qxc3 $2 24. f6 $19)) 22... Nxb2 $1 {[%emt 0:06:42]} 23. Qxb2 {[%emt 0:02:39]} b4 {[%emt 0:00:49]} 24. f6 {[%emt 0:01:38]} exf6 {[%emt 0:01:14]} ({Don't play} 24... bxc3 25. fxg7 cxb2 26. gxf8=Q+ Kxf8 27. Bd3) 25. Bf4 {[%emt 0:05:26]} bxc3 $19 {[%emt 0:00:13]} 26. Qc2 {[%emt 0:01:46]} Rb8+ {[%emt 0:00:21]} 27. Ka1 {[%emt 0:01:33]} Rb2 {[%emt 0:00:44]} 28. Qd3 {[%emt 0:01:51]} f5 {[%emt 0:01:24]} 29. Bxd6 {[%emt 0:01:05]} c2 {[%emt 0:00:04]} 30. e5 {[%emt 0:00:17]} Bxe5 {[%emt 0:01:01]} 31. Bxe5 {[%emt 0:03:08]} Qxe5 {[%emt 0:00:03]} 32. Qd4 {[%emt 0:01:00]} Rb1+ {[%emt 0:00:03]} 33. Rxb1 {[%emt 0:00:27]} Qxd4+ {[%emt 0:00:04]} 34. Rb2 {[%emt 0:00:53]} Rb8 {[%emt 0:00:03]} 0-1

[Event "Czech Youth U12 Boys 2024"]
[Site "Kouty nad Desnou"]
[Date "2024.03.11"]
[Round "3.4"]
[White "Sotek, Matej"]
[Black "Zrust, Lukas"]
[Result "1/2-1/2"]
[ECO "C01"]
[WhiteElo "1716"]
[BlackElo "1893"]
[Annotator "NA RC"]
[PlyCount "138"]
[EventDate "2024.03.10"]
[EventType "swiss"]
[EventCountry "CZE"]
[SourceTitle "playchess.com"]
[Source "ChessBase"]
[SourceQuality "1"]
[TimeControl "40/5400+30:1800+30"]

{[%evp 22,112,30,32767,32767,32767,34,0,-6,-12,-34,-33,32767,32767,-26,-63,-17,-56,32767,-45,-50,-54,-25,32767,32767,32767,32767,-86,32767,32767,-50,-51,-54,-52,-54,-74,32767,-49,-45,-106,-83,-73,-85,-89,-90,-135,-76,-114,32767,0,56,-20,-24,-79,-61,-95,32767,32767,-96,-134,-56,-66,32767,-40,-19,32767,32767,32767,-52,-64,-69,32767,32767,-249,-307,-461,-460,-552,-375,-377,-377,32767,-464,-343,-545,32767,-455,-614,-477,32767,32767,32767,0]} 1. e4 {[%emt 0:00:01]} e6 {[%emt 0:00:09]} 2. d4 {[%emt 0:00:16]} d5 {[%emt 0:00:08]} 3. exd5 {[%emt 0:00:12]} exd5 {[%emt 0:00:15]} 4. Nf3 {[%emt 0:00:31]} Bd6 {[%emt 0:00:20]} 5. Bd3 {[%emt 0:00:06]} Nf6 {[%emt 0:00:30]} 6. O-O {[%emt 0:00:38]} O-O {[%emt 0:00:16]} 7. c3 {[%emt 0:00:18]} Re8 {[%emt 0:03:51] C01: French: Exchange Variation.} 8. Bg5 {[%emt 0:03:10]} h6 {[%emt 0:02:49]} 9. Bh4 {[%emt 0:01:11]} Nbd7 {[%emt 0:04:01]} 10. Nbd2 {[%emt 0:02:17]} c6 {[%emt 0:05:34]} 11. Qc2 {[%emt 0:01:45]} Qc7 {[%emt 0:06:01]} 12. Rfe1 {[%emt 0:01:34]} Rxe1+ {[%emt 0:02:04]} 13. Rxe1 {[%emt 0:00:25]} b6 {[%emt 0:00:29]} 14. Bxf6 {[%emt 0:06:45]} (14. Qd1 $14 {was preferrable.}) 14... Nxf6 {[%emt 0:00:32]} 15. h3 {[%emt 0:02:30]} Bb7 {[%emt 0:04:21]} 16. Nh4 {[%emt 0:04:45]} c5 {[%emt 0:06:48]} 17. dxc5 {[%emt 0:02:34]} bxc5 {[%emt 0:01:48]} 18. b3 {[%emt 0:03:41]} (18. c4 $11 {is superior.}) 18... Nh5 {[%emt 0:08:28]} 19. Nf5 {[%emt 0:03:55]} Bf8 {[%emt 0:03:09]} 20. Nh4 {[%emt 0:01:32]} Nf4 {[%emt 0:02:22]} 21. Bf1 {[%emt 0:02:07]} Bc8 {[%emt 0:07:16]} 22. Bd3 {[%emt 0:03:17]} Nxd3 {[%emt 0:01:31]} 23. Qxd3 {[%emt 0:00:06]} Be6 {[%emt 0:00:58]} 24. Nhf3 {[%emt 0:01:26]} Bd6 {[%emt 0:02:06]} 25. Nf1 {[%emt 0:00:36]} a5 {[%emt 0:01:25]} 26. Ne3 {[%emt 0:01:06]} Qb7 {[%emt 0:01:07]} 27. Rd1 {[%emt 0:02:32]} Rd8 {[%emt 0:02:28]} ({Reject} 27... a4 28. bxa4 Rxa4 29. Nxd5 $11) 28. Kh1 {[%emt 0:05:28]} (28. Nxd5 $2 {geht unter.} Bxd5 29. Nh4 (29. Qxd5 $2 {verliert.} Bh2+ 30. Kxh2 Rxd5 $19) 29... Bxb3 30. axb3 Bh2+ (30... Qxb3 $2 31. Rb1 $19) 31. Kxh2 Rxd3 32. Rxd3 Qxb3 $19) 28... Bf8 {[%emt 0:02:41]} 29. Kg1 {[%emt 0:01:39]} g6 {[%emt 0:01:43]} 30. Qd2 {[%emt 0:03:20] [#]} (30. Ng4 $15) 30... a4 $1 {[%emt 0:03:12]} 31. bxa4 {[%emt 0:02:09]} Qa8 {[%emt 0:02:06]} 32. Qc2 {[%emt 0:02:40]} Bg7 {[%emt 0:01:49]} 33. Ne1 {[%emt 0:07:36]} (33. Rc1 $142) 33... Qa5 {[%emt 0:01:54]} (33... d4 $142 34. cxd4 cxd4) 34. Nd3 {[%emt 0:07:05]} Bxc3 {[%emt 0:01:41]} 35. Nf4 {[%emt 0:00:38]} Kg7 {[%emt 0:06:39] [#]} (35... Re8 $11) 36. Nfxd5 $2 {[%emt 0:02:37]} ({Much weaker is} 36. Nexd5 $6 Bxd5 37. Nxd5 (37. Rxd5 Rxd5 38. Nxd5 Bd4 $11) 37... Bd4 $11) (36. Nxe6+ $1 $16 fxe6 37. Rb1) 36... Bd4 {[%emt 0:04:10]} 37. Nf4 {[%emt 0:01:30]} (37. Nc4 $11 {remains equal.} Qa7 38. Nde3) 37... Bd7 {[%emt 0:03:41]} 38. Nc4 {[%emt 0:09:14]} Qxa4 {[%emt 0:02:50]} 39. Qxa4 {[%emt 0:00:25]} Bxa4 {[%emt 0:00:13]} 40. Rd2 {[%emt 0:01:20]} ({White should play} 40. Rc1) 40... g5 {[%emt 0:01:29]} (40... Rb8 $17 41. Nd5 Rb1+ 42. Kh2 Bc6) 41. Ne2 {[%emt 0:31:08]} Bb5 {[%emt 0:31:44]} 42. Nxd4 {[%emt 0:00:45]} Rxd4 {[%emt 0:00:59]} (42... cxd4 $15 43. Na3 Ba6) 43. Rxd4 {[%emt 0:01:52]} cxd4 {[%emt 0:00:22]} 44. Nd2 {[%emt 0:00:08]} Kf6 {[%emt 0:00:36]} 45. f3 {[%emt 0:00:29]} Ke5 {[%emt 0:00:38]} 46. Kf2 {[%emt 0:00:30]} f5 {[%emt 0:00:25]} 47. g3 $2 {[%emt 0:00:29]} (47. Nb3 $15) 47... f4 {[%emt 0:01:23]} 48. g4 {[%emt 0:02:06]} d3 {[%emt 0:01:26]} 49. Nb3 {[%emt 0:00:39]} Bc4 {[%emt 0:01:36]} 50. Ke1 {[%emt 0:00:57]} Bd5 {[%emt 0:00:12]} 51. Nc1 {[%emt 0:04:18]} Kd4 {[%emt 0:00:25]} ({Not} 51... Bxf3 52. Nxd3+ Ke4 53. Nf2+ Ke3 54. Kf1 $19) 52. Kd2 {[%emt 0:00:42]} Bxf3 {[%emt 0:00:39]} 53. Nxd3 {[%emt 0:00:32]} Be4 {[%emt 0:00:36]} 54. Nf2 $2 {[%emt 0:00:36]} (54. Nc1 Bg2 55. Nb3+ Kd5 56. Ke2 Bxh3 57. Kf3) 54... Bc6 {[%emt 0:00:45]} 55. Ke2 {[%emt 0:03:14]} f3+ {[%emt 0:00:41]} 56. Kd2 {[%emt 0:00:06]} Bb5 $11 {[%emt 0:00:25]} 57. a3 {[%emt 0:01:01]} Ba4 {[%emt 0:00:21]} 58. Nh1 {[%emt 0:03:08]} Ke4 {[%emt 0:00:25]} 59. Ng3+ {[%emt 0:00:15]} Kf4 {[%emt 0:00:12]} 60. Nh5+ {[%emt 0:00:08]} Ke4 {[%emt 0:00:26]} 61. Ng3+ {[%emt 0:00:11]} Ke5 {[%emt 0:01:01]} 62. Ke3 {[%emt 0:00:19]} Bc6 {[%emt 0:00:20]} 63. Nf5 {[%emt 0:02:11]} h5 {[%emt 0:00:16]} 64. Nd4 {[%emt 0:00:40]} Be8 {[%emt 0:00:49]} 65. Nxf3+ {[%emt 0:00:17]} Kf6 {[%emt 0:00:08]} 66. gxh5 {[%emt 0:00:32]} Bxh5 {[%emt 0:00:13]} 67. a4 {[%emt 0:00:12]} g4 {[%emt 0:00:23]} 68. hxg4 {[%emt 0:00:30]} Bxg4 {[%emt 0:00:00]} 69. Nd4 {[%emt 0:00:14]} Bc8 1/2-1/2

[Event "Czech Youth U12 Boys 2024"]
[Site "Kouty nad Desnou"]
[Date "2024.03.11"]
[Round "3.5"]
[White "Kroulik, Stepan"]
[Black "Sochor, Antonin"]
[Result "1-0"]
[ECO "A16"]
[WhiteElo "1683"]
[BlackElo "1779"]
[Annotator "NA RC"]
[PlyCount "115"]
[EventDate "2024.03.10"]
[EventType "swiss"]
[EventCountry "CZE"]
[SourceTitle "playchess.com"]
[Source "ChessBase"]
[SourceQuality "1"]
[TimeControl "40/5400+30:1800+30"]

1. c4 {[%emt 0:00:04]} Nf6 {[%emt 0:00:28]} 2. Nc3 {[%emt 0:00:13]} d6 {[%emt 0:00:28]} 3. g3 {[%emt 0:00:19]} c5 {[%emt 0:08:00]} 4. Bg2 {[%emt 0:00:28]} g6 {[%emt 0:01:52]} 5. d3 {[%emt 0:00:44]} Nc6 {[%emt 0:00:35]} 6. Nf3 {[%emt 0:00:29]} e5 {[%emt 0:00:58]} 7. O-O {[%emt 0:00:39]} Bg7 {[%emt 0:00:51]} 8. Bd2 {[%emt 0:00:52]} Bd7 {[%emt 0:01:39]} 9. a3 {[%emt 0:00:27]} a5 {[%emt 0:00:47]} 10. Nb5 {[%emt 0:02:58]} Be6 {[%emt 0:03:32]} 11. Bc3 {[%emt 0:02:25]} O-O {[%emt 0:02:04]} 12. Rb1 {[%emt 0:04:51]} Na7 {[%emt 0:04:53]} 13. Nxa7 {[%emt 0:01:35]} Rxa7 {[%emt 0:00:11]} 14. b4 {[%emt 0:02:31]} axb4 {[%emt 0:04:14]} 15. axb4 {[%emt 0:00:33]} Nd7 {[%emt 0:01:14]} 16. Nd2 {[%emt 0:02:41]} b6 {[%emt 0:11:12]} 17. Ra1 {[%emt 0:04:42]} Rxa1 {[%emt 0:05:07]} 18. Qxa1 {[%emt 0:00:10]} cxb4 {[%emt 0:02:22]} 19. Bxb4 {[%emt 0:00:40]} Nc5 {[%emt 0:00:48]} 20. Qa3 {[%emt 0:01:22]} Qd7 {[%emt 0:09:07]} 21. Rb1 {[%emt 0:02:13]} Rc8 {[%emt 0:03:08]} 22. Bxc5 {[%emt 0:09:28]} bxc5 {[%emt 0:00:24]} 23. Ne4 {[%emt 0:02:10]} d5 {[%emt 0:07:06]} 24. cxd5 {[%emt 0:10:58]} Bxd5 {[%emt 0:04:07]} 25. Nxc5 {[%emt 0:02:42]} Qc6 {[%emt 0:02:50]} 26. Bxd5 {[%emt 0:00:42]} Qxd5 {[%emt 0:00:34]} 27. Ne4 {[%emt 0:01:21]} Qc6 {[%emt 0:04:03]} 28. Qb3 {[%emt 0:01:00]} Bf8 {[%emt 0:08:45]} 29. Ng5 {[%emt 0:02:05]} Qf6 {[%emt 0:02:34]} 30. Nf3 {[%emt 0:00:54]} Bg7 {[%emt 0:02:02]} 31. Qb6 {[%emt 0:02:18]} Rc1+ {[%emt 0:01:01]} 32. Kg2 {[%emt 0:00:32]} Rxb1 {[%emt 0:00:11]} 33. Qxb1 {[%emt 0:00:13]} h6 {[%emt 0:00:31]} 34. Qb8+ {[%emt 0:00:26]} Kh7 {[%emt 0:00:16]} 35. Qe8 {[%emt 0:00:26]} Qf5 {[%emt 0:00:54]} 36. h3 {[%emt 0:02:44]} h5 {[%emt 0:00:29]} 37. Qe7 {[%emt 0:01:12]} Qf6 {[%emt 0:04:42]} 38. Qxf6 {[%emt 0:02:05]} Bxf6 {[%emt 0:00:16]} 39. g4 {[%emt 0:01:01]} hxg4 {[%emt 0:01:09]} 40. hxg4 {[%emt 0:00:05]} Bh8 {[%emt 0:00:47]} 41. g5 {[%emt 0:30:22]} f5 {[%emt 0:31:18]} 42. gxf6 {[%emt 0:00:14]} Bxf6 {[%emt 0:00:12]} 43. Kg3 {[%emt 0:00:35]} Kg7 {[%emt 0:01:07]} 44. Nd2 {[%emt 0:00:57]} Kf7 {[%emt 0:00:36]} 45. f4 {[%emt 0:01:23]} Ke6 {[%emt 0:00:51]} 46. fxe5 {[%emt 0:00:22]} Kxe5 {[%emt 0:00:34]} 47. Nf3+ {[%emt 0:00:28]} Kf5 {[%emt 0:00:51]} 48. Nh4+ {[%emt 0:01:43]} Kg5 {[%emt 0:01:16]} 49. Nf3+ {[%emt 0:01:06]} Kf5 {[%emt 0:00:08]} 50. e4+ {[%emt 0:00:12]} Ke6 {[%emt 0:00:22]} 51. Kf4 {[%emt 0:00:48]} Be7 {[%emt 0:00:46]} 52. d4 {[%emt 0:01:02]} Bd8 {[%emt 0:01:03]} 53. e5 {[%emt 0:00:25]} Kd5 {[%emt 0:00:34]} 54. Ke3 {[%emt 0:03:39]} Bb6 {[%emt 0:00:20]} 55. Kf4 {[%emt 0:01:49]} Bxd4 {[%emt 0:01:13]} 56. Nxd4 {[%emt 0:00:18]} g5+ {[%emt 0:00:09]} 57. Kf5 {[%emt 0:00:38]} g4 {[%emt 0:00:30]} 58. Ne2 {[%emt 0:00:21]} 1-0

[Event "Czech Youth U12 Boys 2024"]
[Site "Kouty nad Desnou"]
[Date "2024.03.11"]
[Round "3.6"]
[White "Gresek, Oskar"]
[Black "Kala, Jakub"]
[Result "0-1"]
[ECO "B13"]
[WhiteElo "1629"]
[BlackElo "1750"]
[Annotator "NA RC"]
[PlyCount "222"]
[EventDate "2024.03.10"]
[EventType "swiss"]
[EventCountry "CZE"]
[SourceTitle "playchess.com"]
[Source "ChessBase"]
[SourceQuality "1"]
[TimeControl "40/5400+30:1800+30"]

1. e4 {[%emt 0:00:03]} c6 {[%emt 0:00:06]} 2. d4 {[%emt 0:00:13]} d5 {[%emt 0:00:04]} 3. exd5 {[%emt 0:01:05]} cxd5 {[%emt 0:00:07]} 4. Nf3 {[%emt 0:00:46]} Nc6 {[%emt 0:00:49]} 5. c3 {[%emt 0:01:59]} Nf6 {[%emt 0:01:09]} 6. Bd3 {[%emt 0:00:43]} Bg4 {[%emt 0:00:53]} 7. Bf4 {[%emt 0:03:39]} e6 {[%emt 0:05:43]} 8. Nbd2 {[%emt 0:03:18]} Bd6 {[%emt 0:01:36]} 9. Bxd6 {[%emt 0:03:31]} Qxd6 {[%emt 0:00:05]} 10. O-O {[%emt 0:00:46]} Rc8 {[%emt 0:03:52]} 11. Re1 {[%emt 0:02:30]} O-O {[%emt 0:01:01]} 12. Qc2 {[%emt 0:06:34]} Nb4 {[%emt 0:07:13]} 13. Qb1 {[%emt 0:00:39]} Nxd3 {[%emt 0:01:01]} 14. Qxd3 {[%emt 0:00:12]} Bf5 {[%emt 0:04:48]} 15. Qe2 {[%emt 0:03:45]} Qb6 {[%emt 0:01:43]} 16. Nb3 {[%emt 0:05:09]} Rfd8 {[%emt 0:09:45]} 17. h3 {[%emt 0:05:06]} h6 {[%emt 0:07:01]} 18. Ne5 {[%emt 0:04:36]} Nd7 {[%emt 0:06:36]} 19. Nxd7 {[%emt 0:04:03]} Rxd7 {[%emt 0:00:06]} 20. Nc5 {[%emt 0:00:49]} Rdc7 {[%emt 0:00:50]} 21. Red1 {[%emt 0:05:50]} Qd6 {[%emt 0:06:04]} 22. Re1 {[%emt 0:03:05]} b6 {[%emt 0:03:42]} 23. Nb3 {[%emt 0:02:27]} a5 {[%emt 0:02:14]} 24. a3 {[%emt 0:03:57]} Qc6 {[%emt 0:03:21]} 25. Nc1 {[%emt 0:11:16]} Qa4 {[%emt 0:06:27]} 26. Nd3 {[%emt 0:04:54]} Qb3 {[%emt 0:01:34]} 27. Nc1 {[%emt 0:03:41]} Qa4 {[%emt 0:01:50]} 28. Nd3 {[%emt 0:00:31]} Qd7 {[%emt 0:02:06]} 29. Ne5 {[%emt 0:00:58]} Qe8 {[%emt 0:01:05]} 30. Nd3 {[%emt 0:01:43]} Rb7 {[%emt 0:01:51]} 31. Rec1 {[%emt 0:03:13]} Qe7 {[%emt 0:04:27]} 32. Re1 {[%emt 0:00:59]} Rbb8 {[%emt 0:00:42]} 33. Rec1 {[%emt 0:02:38]} b5 {[%emt 0:02:10]} 34. b4 {[%emt 0:00:59]} Bxd3 {[%emt 0:01:29]} 35. Qxd3 {[%emt 0:00:06]} Rc4 {[%emt 0:00:17]} 36. Ra2 {[%emt 0:04:38]} Ra8 {[%emt 0:01:13]} 37. Rb2 {[%emt 0:01:20]} Qc7 {[%emt 0:02:46]} 38. Rbc2 {[%emt 0:02:59]} g6 {[%emt 0:02:45]} 39. Qe3 {[%emt 0:00:31]} Kh7 {[%emt 0:00:29]} 40. Qf3 {[%emt 0:00:34]} Kg7 {[%emt 0:01:13]} 41. Qe3 {[%emt 0:30:19]} Rc8 {[%emt 0:30:42]} 42. f4 {[%emt 0:01:44]} Qb6 {[%emt 0:01:53]} 43. Kh1 {[%emt 0:01:06]} R8c6 {[%emt 0:00:31]} 44. g3 {[%emt 0:01:22]} Qd8 {[%emt 0:00:20]} 45. Kh2 {[%emt 0:00:49]} Qc8 {[%emt 0:00:31]} 46. Qd3 {[%emt 0:00:30]} Qc7 {[%emt 0:00:40]} 47. Qd2 {[%emt 0:00:28]} Qa7 {[%emt 0:01:24]} 48. Qe2 {[%emt 0:01:06]} axb4 {[%emt 0:00:29]} 49. axb4 {[%emt 0:00:14]} Ra6 {[%emt 0:00:23]} 50. Qd2 {[%emt 0:00:44]} Ra3 {[%emt 0:00:53]} 51. Qd1 {[%emt 0:00:45]} Rc6 {[%emt 0:01:58]} 52. Kg2 {[%emt 0:00:41]} Rca6 {[%emt 0:00:53]} 53. Qd2 {[%emt 0:00:08]} Qc7 {[%emt 0:01:01]} 54. Qe2 {[%emt 0:00:36]} Qc6 {[%emt 0:00:39]} 55. Qe5+ {[%emt 0:00:48]} Kh7 {[%emt 0:00:24]} 56. Qe2 {[%emt 0:00:26]} Rb3 {[%emt 0:01:46]} 57. Qd2 {[%emt 0:00:42]} Qc4 {[%emt 0:00:20]} 58. Kh2 {[%emt 0:00:39]} Rba3 {[%emt 0:00:37]} 59. Kg2 {[%emt 0:00:30]} Qb3 {[%emt 0:00:46]} 60. Rb2 {[%emt 0:00:17]} Qc4 {[%emt 0:00:34]} 61. Rbc2 {[%emt 0:00:09]} Kg7 {[%emt 0:00:28]} 62. Kh2 {[%emt 0:00:35]} Kf6 {[%emt 0:00:49]} 63. Kg2 Qb3 {[%emt 0:00:32]} 64. Rb2 {[%emt 0:01:02]} Qc4 {[%emt 0:00:07]} 65. Rbc2 {[%emt 0:00:06]} Ke7 {[%emt 0:00:49]} 66. Kh2 {[%emt 0:00:12]} Ra1 {[%emt 0:00:36]} 67. Rxa1 {[%emt 0:01:22]} Rxa1 {[%emt 0:00:04]} 68. Qe2 {[%emt 0:00:19]} Qxe2+ {[%emt 0:00:29]} 69. Rxe2 {[%emt 0:00:06]} Rc1 {[%emt 0:00:07]} 70. Re3 {[%emt 0:00:04]} Rc2+ {[%emt 0:00:08]} 71. Kg1 {[%emt 0:00:14]} f6 {[%emt 0:00:42]} 72. Kh1 {[%emt 0:00:54]} f5 {[%emt 0:01:06]} 73. h4 {[%emt 0:00:36]} Kf6 {[%emt 0:00:34]} 74. Kg1 {[%emt 0:00:14]} g5 {[%emt 0:00:50]} 75. hxg5+ {[%emt 0:00:52]} hxg5 {[%emt 0:00:06]} 76. Rf3 {[%emt 0:01:16]} Re2 {[%emt 0:01:08]} 77. Kf1 {[%emt 0:00:30]} Rh2 {[%emt 0:00:20]} 78. Rf2 {[%emt 0:00:40]} Rh1+ {[%emt 0:00:34]} 79. Kg2 {[%emt 0:00:17]} Rc1 {[%emt 0:00:05]} 80. Rf3 {[%emt 0:00:19]} Rc2+ {[%emt 0:00:05]} 81. Kg1 {[%emt 0:00:22]} Kg6 {[%emt 0:00:33]} 82. Re3 {[%emt 0:00:13]} Kh5 {[%emt 0:00:46]} 83. fxg5 {[%emt 0:00:49]} Kxg5 {[%emt 0:00:12]} 84. Rxe6 {[%emt 0:00:18]} Rxc3 {[%emt 0:00:08]} 85. Rb6 {[%emt 0:00:58]} Rxg3+ {[%emt 0:00:17]} 86. Kf2 {[%emt 0:00:07]} Rd3 {[%emt 0:00:21]} 87. Rxb5 {[%emt 0:00:15]} Rxd4 {[%emt 0:00:07]} 88. Rb8 {[%emt 0:00:27]} Kf4 {[%emt 0:00:13]} 89. b5 {[%emt 0:00:26]} Rd2+ {[%emt 0:00:16]} 90. Ke1 {[%emt 0:00:18]} Rb2 {[%emt 0:00:31]} 91. b6 {[%emt 0:00:34]} Ke3 {[%emt 0:00:48]} 92. Re8+ {[%emt 0:00:08]} Kd4 {[%emt 0:01:58]} 93. Rf8 {[%emt 0:00:44]} Rxb6 {[%emt 0:00:30]} 94. Rxf5 {[%emt 0:00:12]} Rb2 {[%emt 0:00:23]} 95. Rf8 {[%emt 0:01:10]} Kd3 {[%emt 0:00:10]} 96. Rd8 {[%emt 0:01:00]} d4 {[%emt 0:00:25]} 97. Rd7 {[%emt 0:00:44]} Rb1+ {[%emt 0:00:07]} 98. Kf2 {[%emt 0:00:10]} Rd1 {[%emt 0:02:15]} 99. Rd8 {[%emt 0:00:19]} Kc2 {[%emt 0:00:43]} 100. Rc8+ {[%emt 0:00:27]} Kd2 {[%emt 0:00:12]} 101. Rd8 {[%emt 0:00:55]} d3 {[%emt 0:00:11]} 102. Rd7 {[%emt 0:00:20]} Ra1 {[%emt 0:00:36]} 103. Rc7 {[%emt 0:00:38]} Kd1 {[%emt 0:00:48]} 104. Rd7 {[%emt 0:00:48]} d2 {[%emt 0:00:20]} 105. Rd8 {[%emt 0:00:24]} Ra7 {[%emt 0:00:31]} 106. Rc8 Rf7+ {[%emt 0:00:36]} 107. Kg2 {[%emt 0:01:14]} Rf4 {[%emt 0:00:40]} 108. Kg3 {[%emt 0:00:20]} Rf5 {[%emt 0:00:06]} 109. Kg4 {[%emt 0:00:15]} Rf2 {[%emt 0:00:15]} 110. Kg3 {[%emt 0:00:21]} Ke1 {[%emt 0:00:21]} 111. Rd8 {[%emt 0:00:41]} Re2 {[%emt 0:00:20]} 0-1